fUSD/lending_fUSD_20260106
["ID","MTS","AMOUNT","RATE_DAILY","PERIOD"]
[400518216,1767693956887,-500.0,0.00024696,2]
[400518217,1767693956915,-500.0,0.00024696,2]
[400518218,1767693956942,-500.0,0.00024696,2]
[400518219,1767693956966,-183.24703799,0.00024698,2]
[400518220,1767693956991,-321.24518713,0.00024698,2]
[400518221,1767693957012,-500.0,0.00024698,2]
[400518222,1767693957035,-190.46136523,0.00024698,2]
[400518223,1767693957057,-502.7457157,0.00024698,2]
[400518224,1767693957080,-500.0,0.00024698,2]
[400518225,1767693957104,-500.0,0.00024698,2]
[400518226,1767693957126,-500.0,0.00024698,2]
[400518227,1767693957149,-646.90584134,0.00024698,2]
[400518228,1767693957171,-500.0,0.00024698,2]
[400518229,1767693957197,-500.0,0.00024698,2]
[400518230,1767693957220,-500.0,0.00024698,2]
[400518231,1767693957243,-509.86932533,0.00024698,2]
[400518232,1767693957266,-500.0,0.00024698,2]
[400518233,1767693957290,-500.0,0.00024698,2]
[400518234,1767693957312,-500.0,0.00024698,2]
[400518235,1767693957336,-522.38021596,0.00024698,2]
[400518236,1767693957360,-500.0,0.00024698,2]
[400518237,1767693957391,-505.79783251,0.00024698,2]
[400518238,1767693957426,-1000000.0,0.00024699,2]
[400518239,1767693957450,-194.31936888,0.00024699,2]
[400518240,1767693957474,-986.22,0.000247,7]
[400518241,1767693957499,-396079.56683,0.000248,3]
[400518242,1767693957527,-505.0,0.00024852,7]
[400518243,1767693957552,-318.07075555,0.00024855,2]
[400518244,1767693957577,-11649.3990244,0.00024864,3]
[400518245,1767693957601,-500.0,0.00024874,120]
[400518246,1767693957625,-8712.05196784,0.000249,3]
[400518247,1767693957650,-301.3553876,0.00024931,2]
[400518248,1767693959520,151.0,0.00024931,2]
[400518249,1767693959679,151.0,0.00024931,2]
[400518250,1767693966243,151.0,0.0001821,2]
[400518251,1767693983242,151.0,0.00018203,2]
[400518252,1767693997166,500.0,0.00024698,2]
[400518253,1767694000295,151.0,0.00018203,2]
[400518254,1767694016474,151.0,0.00018203,2]
[400518255,1767694030679,513.8834858,0.00024698,2]
[400518256,1767694033450,151.0,0.00017896,2]
[400518257,1767694049899,151.0,0.00019229,2]
[400518258,1767694066915,151.0,0.00019676,2]
[400518259,1767694083862,151.0,0.00019676,2]
[400518260,1767694100599,151.0,0.00019756,2]
[400518261,1767694118022,151.0,0.00019761,2]
[400518262,1767694134956,151.0,0.00019761,2]
[400518263,1767694151926,151.0,0.00019761,2]
[400518264,1767694159111,-465.0,0.00025026,120]
[400518265,1767694159140,-279.0,0.00025026,120]
[400518266,1767694159171,-167.0,0.00025026,120]
[400518267,1767694159196,-600.0,0.00025078,120]
[400518268,1767694159222,-187.15,0.00025131,2]
[400518269,1767694159248,-3527.5228676,0.00025203,2]
[400518270,1767694159273,-129.3666124,0.00025457,2]
[400518271,1767694159348,151.0,0.00024931,2]
[400518272,1767694164651,309.67961412,0.00024698,2]
[400518273,1767694168465,151.0,0.00019744,2]
[400518280,1767694231509,-168.0,0.00025226,120]
[400518281,1767694231521,-161.07357848,0.00025358,49]
[400518282,1767694231531,-124.884161,0.00025457,2]
[400518283,1767694231543,-26.115839,0.00025457,2]
[400518285,1767694231552,-390.0,0.00025457,2]
[400518287,1767694231563,-18.46139762,0.00025457,2]
[400518289,1767694231584,-852.17198998,0.00025457,2]
[400518291,1767694231594,-35.35757505,0.000258,2]
[400518292,1767694231633,-259.85,0.000258,2]
[400518293,1767694231647,-349.17285286,0.000258,2]
[400518294,1767694231660,-1355.61957209,0.000258,2]
[400518295,1767694231673,-161.07357845,0.0002616,51]
[400518296,1767694231683,-300.0,0.00026161,2]
[400518297,1767694231694,-200.0,0.00026162,2]
[400518298,1767694231703,-209.40437684,0.00026162,2]
[400518299,1767694231714,-151.0,0.00026162,2]
[400518300,1767694231726,-250.0,0.00026162,2]
[400518301,1767694231737,-250.0,0.00026162,2]
[400518302,1767694231747,-151.0,0.00026162,2]
[400518303,1767694231757,-250.0,0.00026162,2]
[400518304,1767694231767,-250.0,0.00026162,2]
[400518305,1767694231777,-151.0,0.00026162,2]
[400518307,1767694231788,-250.0,0.00026162,2]
[400518308,1767694231798,-574.12855637,0.00026162,2]
[400518310,1767694231807,-250.0,0.00026162,2]
[400518311,1767694231818,-151.0,0.00026162,2]
[400518312,1767694231828,-250.0,0.00026162,2]
[400518313,1767694231839,-250.0,0.00026162,2]
[400518315,1767694231848,-151.0,0.00026162,2]
[400518317,1767694231858,-250.0,0.00026162,2]
[400518319,1767694231867,-200.0,0.00026162,2]
[400518321,1767694231877,-250.0,0.00026162,2]
[400518323,1767694231886,-151.0,0.00026162,2]
[400518325,1767694231896,-250.0,0.00026162,2]
[400518327,1767694231906,-250.0,0.00026162,2]
[400518328,1767694231915,-250.0,0.00026162,2]
[400518329,1767694231928,-151.0,0.00026162,2]
[400518330,1767694231938,-250.0,0.00026162,2]
[400518331,1767694231947,-250.0,0.00026162,2]
[400518332,1767694231957,-151.0,0.00026162,2]
[400518333,1767694232258,-250.0,0.00026162,2]
[400518334,1767694232271,-250.0,0.00026162,2]
[400518335,1767694232285,-151.0,0.00026162,2]
[400518336,1767694232296,-250.0,0.00026162,2]
[400518337,1767694232306,-250.0,0.00026162,2]
[400518338,1767694232315,-250.0,0.00026162,2]
[400518339,1767694232324,-151.0,0.00026162,2]
[400518340,1767694232334,-250.0,0.00026162,2]
[400518341,1767694232343,-250.0,0.00026162,2]
[400518342,1767694232353,-151.0,0.00026162,2]
[400518343,1767694232363,-322.6107,0.00026162,2]
[400518344,1767694232373,-250.0,0.00026162,2]
[400518345,1767694232382,-200.0,0.00026162,2]
[400518346,1767694232391,-250.0,0.00026162,2]
[400518347,1767694232400,-250.0,0.00026162,2]
[400518348,1767694232411,-250.0,0.00026162,2]
[400518349,1767694232421,-250.0,0.00026162,2]
[400518350,1767694232430,-250.0,0.00026162,2]
[400518351,1767694232440,-250.0,0.00026162,2]
[400518352,1767694232450,-250.0,0.00026162,2]
[400518353,1767694232460,-250.0,0.00026162,2]
[400518354,1767694232469,-250.0,0.00026162,2]
[400518355,1767694232479,-250.0,0.00026162,2]
[400518356,1767694232489,-465.0,0.00026277,120]
[400518357,1767694232498,-279.0,0.00026277,120]
[400518358,1767694232508,-167.0,0.00026277,120]
[400518359,1767694232517,-170.0,0.00026306,2]
[400518360,1767694232526,-172.0,0.00026373,2]
[400518361,1767694232536,-168.0,0.00026487,120]
[400518362,1767694232545,-301.13,0.00026676,2]
[400518363,1767694232555,-172.0,0.00026685,2]
[400518364,1767694232565,-812.65,0.00026692,120]
[400518365,1767694232575,-217.15233878,0.0002671,2]
[400518366,1767694232584,-595.37131296,0.0002671,2]
[400518367,1767694232594,-200.0,0.0002671,2]
[400518368,1767694232604,-157.35456451,0.0002671,2]
[400518369,1767694232617,-42.64543549,0.0002671,2]
[400518370,1767694232627,-172.0,0.00026764,7]
[400518371,1767694232637,-170.0,0.00026892,2]
[400518372,1767694232647,-51.95467723,0.00026896,7]
[400518373,1767694232666,-118.04532277,0.00026896,7]
[400518374,1767694232678,-170.0,0.00026913,2]
[400518375,1767694232687,-170.0,0.00026955,2]
[400518376,1767694232697,-161.07357845,0.00026962,53]
[400518377,1767694232707,-170.0,0.00026986,2]
[400518378,1767694232716,-170.0,0.00027028,2]
[400518379,1767694232725,-170.0,0.00027129,2]
[400518380,1767694232734,-202.16948953,0.00027258,2]
[400518381,1767694232746,-61.47695055,0.00027258,2]
[400518382,1767694232755,-617.40005154,0.00027258,2]
[400518383,1767694232765,-200.0,0.00027258,2]
[400518384,1767694232774,-53.90564435,0.00027258,2]
[400518385,1767694232786,-146.09435565,0.00027258,2]
[400518386,1767694232795,-170.0,0.00027318,2]
[400518387,1767694232804,-170.0,0.0002733,2]
[400518388,1767694232814,-170.0,0.00027379,2]
[400518389,1767694232824,-323.48910006,0.00027397,20]
[400518390,1767694232835,-176.51089994,0.00027397,20]
[400518391,1767694232844,-300.0,0.00027397,2]
[400518392,1767694232854,-387.3,0.00027397,30]
[400518393,1767694232866,-170.0,0.0002743,7]
[400518394,1767694232876,-170.0,0.0002749,2]
[400518395,1767694232885,-600.0,0.00027528,120]
[400518396,1767694232895,-300.0,0.00027528,120]
[400518397,1767694232904,-334.5472959,0.00027531,2]
[400518398,1767694232913,-301.3553876,0.0002758,2]
[400518399,1767694232923,-167.0,0.00027591,120]
[400518400,1767694232933,-172.0,0.00027702,2]
[400518401,1767694232942,-170.0,0.00027713,2]
[400518402,1767694232952,-1106.24230109,0.00027754,2]
[400518403,1767694236054,506.0,0.00022,2]
[400518404,1767694236329,506.0,0.000249,4]
[400518410,1767694237580,-217.65769891,0.00027754,2]
[400518411,1767694237590,-161.07357845,0.00027764,55]
[400518412,1767694237599,-164.8476258,0.000278,7]
[400518413,1767694237642,-341.1523742,0.000278,7]
[400518414,1767694237651,-640.24385345,0.00027806,2]
[400518415,1767694237660,-200.0,0.00027806,2]
[400518416,1767694237669,-200.0,0.00027806,2]
[400518417,1767694237680,-168.0,0.00027811,120]
[400518418,1767694237689,-170.0,0.00028002,2]
[400518419,1767694237699,-176.0,0.00028034,2]
[400518420,1767694237708,-170.0,0.0002809,2]
[400518421,1767694237717,-170.0,0.00028123,2]
[400518422,1767694237727,-3527.5228676,0.00028125,2]
[400518423,1767694237736,-293.32996037,0.00028354,2]
[400518424,1767694237748,-370.60291565,0.00028354,2]
[400518425,1767694237757,-200.0,0.00028354,2]
[400518426,1767694237767,-200.0,0.00028354,2]
[400518427,1767694237776,-172.0,0.0002853,2]
[400518428,1767694237785,-161.07357845,0.00028566,57]
[400518429,1767694237794,-170.0,0.00028734,2]
[400518431,1767694237803,-46.81033231,0.00028762,2]
[400518433,1767694237814,-123.18966769,0.00028762,2]
[400518435,1767694237824,-346.92554585,0.000289,2]
[400518437,1767694237833,-207.4,0.00028901,2]
[400518439,1767694237842,-688.49839244,0.00028902,2]
[400518441,1767694237852,-200.0,0.00028902,2]
[400518443,1767694237861,-200.0,0.00028902,2]
[400518445,1767694237870,-167.0,0.00028971,120]
[400518446,1767694237879,-62.07033298,0.00029202,120]
[400518452,1767694237919,-105.92966702,0.00029202,120]
[400518454,1767694237930,-161.07357845,0.00029368,59]
[400518456,1767694237939,-82.05275453,0.0002945,2]
[400518458,1767694237954,-631.92007843,0.0002945,2]
[400518460,1767694237966,-200.0,0.0002945,2]
[400518462,1767694237975,-200.0,0.0002945,2]
[400518464,1767694237985,-2000.0,0.000295,2]
[400518466,1767694237995,-363.09797062,0.00029998,2]
[400518468,1767694238004,-200.0,0.00029998,2]
[400518470,1767694238013,-200.0,0.00029998,2]
[400518472,1767694238023,-999.01,0.0003,10]
[400518474,1767694238033,-161.07357845,0.0003017,61]
[400518476,1767694238043,-155.91661298,0.000302,120]
[400518478,1767694238052,-301.3553876,0.0003023,2]
[400518480,1767694238062,-359.76179104,0.00030269,2]
[400518482,1767694238071,-2421.0,0.00030452,2]
[400518484,1767694238088,-2421.0,0.00030507,2]
[400518486,1767694238098,-200.0,0.00030546,2]
[400518488,1767694238107,-200.0,0.00030546,2]
[400518490,1767694238117,-2421.0,0.00030562,2]
[400518492,1767694238126,-2421.0,0.00030616,2]
[400518495,1767694238136,-2421.0,0.00030671,2]
[400518497,1767694238146,-506.0,0.000307,10]
[400518499,1767694238155,-2421.0,0.00030726,2]
[400518501,1767694238166,-162.55,0.00030781,2]
[400518503,1767694238175,-2421.0,0.00030781,2]
[400518504,1767694238190,-160.2,0.000308,30]
[400518506,1767694238202,-2421.0,0.00030836,2]
[400518508,1767694238211,-2421.0,0.0003089,2]
[400518510,1767694238221,-500.0,0.00030906,2]
[400518512,1767694238232,-500.0,0.00030906,2]
[400518514,1767694238242,-500.0,0.00030906,2]
[400518516,1767694238260,-500.0,0.00030906,2]
[400518518,1767694238275,-422.07234246,0.00030906,2]
[400518520,1767694238285,-500.0,0.00030906,2]
[400518522,1767694238295,-500.0,0.00030906,2]
[400518524,1767694238305,-500.0,0.00030906,2]
[400518526,1767694238314,-500.0,0.00030906,2]
[400518527,1767694238325,-26865.0,0.00030907,2]
[400518530,1767694238335,-2421.0,0.00030945,2]
[400518531,1767694238345,-161.07357845,0.00030972,63]
[400518533,1767694238355,-2421.0,0.00031,2]
[400518535,1767694238365,-157.45973788,0.00031,120]
[400518537,1767694238376,-3527.5228676,0.00031046,2]
[400518540,1767694238387,-2421.0,0.00031055,2]
[400518542,1767694238398,-200.0,0.00031094,2]
[400518544,1767694238409,-200.0,0.00031094,2]
[400518545,1767694238418,-2421.0,0.0003111,2]
[400518547,1767694238430,-2421.0,0.00031164,2]
[400518549,1767694238440,-2421.0,0.00031219,2]
[400518551,1767694238451,-180.501,0.00031223,28]
[400518554,1767694238462,-1329.844,0.00031223,28]
[400518555,1767694238471,-2421.0,0.00031274,2]
[400518557,1767694238481,-417.18292408,0.00031328,30]
[400518560,1767694238490,-2421.0,0.00031329,2]
[400518562,1767694238500,-2421.0,0.00031384,2]
[400518563,1767694238510,-2421.0,0.00031438,2]
[400518566,1767694238519,-2421.0,0.00031493,2]
[400518568,1767694238529,-687.60103649,0.000315,120]
[400518569,1767694238539,-2421.0,0.00031548,2]
[400518571,1767694238548,-2421.0,0.00031603,2]
[400518573,1767694238557,-373.07297731,0.00031638,2]
[400518575,1767694238566,-215.0738,0.0003164,2]
[400518577,1767694238575,-200.0,0.00031642,2]
[400518579,1767694238584,-200.0,0.00031642,2]
[400518581,1767694238595,-2421.0,0.00031657,2]
[400518583,1767694238605,-2442.23922541,0.00031712,2]
[400518585,1767694238615,-1479.0,0.00031723,5]
[400518587,1767694238624,-387.3,0.00031723,30]
[400518589,1767694238634,-161.07357845,0.00031774,65]
[400518591,1767694238643,-184.71,0.00031821,2]
[400518593,1767694238653,-187.15,0.0003198,2]
[400518595,1767694238662,-482.7445755,0.00032,120]
[400518597,1767694238672,-200.0,0.0003219,2]
[400518599,1767694238681,-200.0,0.0003219,2]
[400518601,1767694238691,-1000.0,0.000324,7]
[400518603,1767694238700,-10124.50883994,0.00032466,2]
[400518605,1767694238710,-9060.64368567,0.00032469,3]
[400518607,1767694238719,-9060.64368567,0.00032566,3]
[400518609,1767694238730,-21905.80140284,0.00032576,2]
[400518611,1767694238739,-161.07357845,0.00032576,67]
[400518613,1767694238749,-942.56574764,0.000326,2]
[400518615,1767694238759,-18121.2873713,0.00032666,3]
[400518617,1767694238768,-18492.95666611,0.00032676,2]
[400518619,1767694238780,-15015.71813389,0.00032676,2]
[400518622,1767694238790,-1000.0,0.00032676,2]
[400518624,1767694238800,-200.0,0.00032738,2]
[400518626,1767694238809,-200.0,0.00032738,2]
[400518628,1767694238819,-9060.64368567,0.00032766,3]
[400518630,1767694238829,-10000.0,0.00032776,2]
[400518631,1767694238839,-500.0,0.00032776,2]
[400518633,1767694238852,-500.0,0.00032776,2]
[400518635,1767694238862,-500.0,0.00032776,2]
[400518638,1767694238872,-500.0,0.00032776,2]
[400518639,1767694238882,-500.0,0.00032776,2]
[400518641,1767694238892,-500.0,0.00032776,2]
[400518643,1767694238902,-500.0,0.00032776,2]
[400518645,1767694238912,-500.0,0.00032776,2]
[400518647,1767694238922,-500.0,0.00032776,2]
[400518649,1767694238932,-500.0,0.00032776,2]
[400518651,1767694238942,-500.0,0.00032776,2]
[400518653,1767694238952,-307.7435324,0.00032776,2]
[400518655,1767694238962,-187.12449524,0.00032776,2]
[400518657,1767694238972,-165.25,0.00032856,2]
[400518659,1767694238981,-5218.0201528,0.0003286,3]
[400518725,1767694239606,-534.0,0.0003286,3]
[400518727,1767694239618,-827.2770507,0.0003286,3]
[400518729,1767694239628,-422.28753396,0.0003286,3]
[400518731,1767694239639,-653.76080498,0.0003286,3]
[400518737,1767694239690,-10465.94182886,0.0003286,3]
[400518739,1767694239700,-151.0,0.00032863,14]
[400518741,1767694239709,-262120.77438553,0.00032866,3]
[400518743,1767694239721,-91244.32935547,0.00032866,3]
[400518745,1767694239730,-69542.56092774,0.00032866,3]
[400518748,1767694239745,-21041.45799257,0.00032866,3]
[400518750,1767694239755,-4348.12435315,0.00032866,3]
[400518752,1767694239766,-971.65257382,0.00032866,3]
[400518756,1767694239799,-2280.9972858,0.00032866,3]
[400518759,1767694239811,-1956.161805,0.00032866,3]
[400518764,1767694239854,-570.39513047,0.00032866,3]
[400518766,1767694239866,-5350.87,0.00032866,3]
[400518772,1767694239911,-142252.26322945,0.00032866,3]
[400518774,1767694239921,-29213.33189605,0.0003287,2]
[400518776,1767694239931,-300.0,0.00032875,10]
[400518778,1767694239940,-24687.1206392,0.00032876,60]
[400518780,1767694239949,-481.965286,0.00032876,120]
[400518782,1767694239958,-1052.566316,0.00032876,120]
[400518784,1767694239968,-481.965286,0.00032876,120]
[400518786,1767694239976,-1052.566316,0.00032876,120]
[400518788,1767694239985,-481.965286,0.00032876,120]
[400518790,1767694239994,-1052.566316,0.00032876,120]
[400518791,1767694240003,-766.051886,0.00032876,120]
[400518794,1767694240013,-481.965286,0.00032876,120]
[400518795,1767694240022,-1052.566316,0.00032876,120]
[400518797,1767694240031,-766.051886,0.00032876,120]
[400518799,1767694240040,-766.051886,0.00032876,120]
[400518801,1767694240049,-766.051886,0.00032876,120]
[400518803,1767694240058,-3579.811093,0.00032876,120]
[400518805,1767694240067,-3579.811093,0.00032876,120]
[400518807,1767694240076,-3579.811093,0.00032876,120]
[400518809,1767694240085,-3579.811093,0.00032876,120]
[400518812,1767694240100,-3394.466165,0.00032876,120]
[400518814,1767694240109,-3394.466165,0.00032876,120]
[400518816,1767694240119,-3394.466165,0.00032876,120]
[400518818,1767694240127,-3394.466165,0.00032876,120]
[400518820,1767694240136,-3101.745966,0.00032876,120]
[400518821,1767694240145,-3101.745966,0.00032876,120]
[400518823,1767694240154,-3101.745966,0.00032876,120]
[400518825,1767694240164,-3101.745966,0.00032876,120]
[400518827,1767694240174,-321.02549611,0.00032876,120]
[400518829,1767694240186,-287.76080393,0.00032876,120]
[400518831,1767694240198,-500.0,0.00032876,30]
[400518833,1767694240208,-600.0,0.00032876,30]
[400518836,1767694240218,-413.71713374,0.00032876,120]
[400518838,1767694240227,-194.87453634,0.00032876,120]
[400518840,1767694240238,-305.70921144,0.00032876,120]
[400518841,1767694240248,-164.68824821,0.00032876,120]
[400518844,1767694240257,-485.74821594,0.00032876,120]
[400518846,1767694240267,-500.0,0.00032876,7]
[400518848,1767694240277,-500.0,0.00032876,7]
[400518850,1767694240286,-500.0,0.00032876,7]
[400518851,1767694240295,-500.0,0.00032876,7]
[400518853,1767694240304,-500.0,0.00032876,7]
[400518855,1767694240313,-500.0,0.00032876,7]
[400518857,1767694240322,-500.0,0.00032876,7]
[400518859,1767694240332,-435.20242883,0.00032876,120]
[400518861,1767694240341,-500.0,0.00032876,120]
[400518863,1767694240351,-197.92032474,0.00032876,120]
[400518865,1767694240360,-496.84822591,0.00032876,120]
[400518867,1767694240370,-258.76685974,0.00032876,60]
[400518869,1767694240379,-512.88561528,0.00032876,120]
[400518871,1767694240387,-372.25926861,0.00032876,120]
[400518873,1767694240396,-359.23732014,0.00032876,120]
[400518875,1767694240406,-263.47301277,0.00032876,120]
[400518877,1767694240414,-274.93247877,0.00032876,120]
[400518879,1767694240424,-500.0,0.00032876,120]
[400518881,1767694240434,-414.79187007,0.00032876,120]
[400518883,1767694240443,-232.26176829,0.00032876,120]
[400518884,1767694240452,-489.85297421,0.00032876,120]
[400518885,1767694240461,-324.47444634,0.00032876,120]
[400518886,1767694240470,-505.7924368,0.00032876,120]
[400518887,1767694240479,-176.37813124,0.00032876,120]
[400518888,1767694240488,-427.94675618,0.00032876,120]
[400518889,1767694240497,-167.09059792,0.00032876,120]
[400518890,1767694240506,-483.58838675,0.00032876,120]
[400518891,1767694240515,-215.61228866,0.00032876,120]
[400518892,1767694240523,-369.22323666,0.00032876,120]
[400518893,1767694240532,-861.59106023,0.00032876,120]
[400518894,1767694240541,-221.10503896,0.00032876,120]
[400518895,1767694240550,-500.0,0.00032876,120]
[400518896,1767694240559,-269.49910442,0.00032876,120]
[400518897,1767694240568,-249.13428523,0.00032876,120]
[400518898,1767694240577,-304.01911612,0.00032876,120]
[400518899,1767694240586,-150.1,0.00032876,120]
[400518900,1767694240595,-431.40870401,0.00032876,120]
[400518901,1767694240604,-500.0,0.00032876,120]
[400518903,1767694240613,-293.68147509,0.00032876,120]
[400518905,1767694240622,-416.83535335,0.00032876,120]
[400518907,1767694240631,-337.63209821,0.00032876,120]
[400518909,1767694240642,-500.0,0.00032876,120]
[400518911,1767694240651,-252.45393916,0.00032876,120]
[400518913,1767694240660,-329.22617912,0.00032876,120]
[400518915,1767694240669,-278.51523456,0.00032876,120]
[400518917,1767694240678,-500.0,0.00032876,120]
[400518919,1767694240687,-532.78803574,0.00032876,120]
[400518921,1767694240696,-500.0,0.00032876,120]
[400518923,1767694240704,-167.97592774,0.00032876,120]
[400518925,1767694240713,-448.85181734,0.00032876,120]
[400518927,1767694240722,-500.0,0.00032876,120]
[400518928,1767694240731,-357.09107125,0.00032876,120]
[400518930,1767694240740,-436.88228882,0.00032876,120]
[400518932,1767694240749,-218.00970932,0.00032876,120]
[400518934,1767694240757,-515.33162511,0.00032876,120]
[400518936,1767694240766,-433.16229657,0.00032876,120]
[400518938,1767694240775,-331.73481241,0.00032876,120]
[400518940,1767694240784,-500.0,0.00032876,120]
[400518942,1767694240794,-492.49318978,0.00032876,120]
[400518944,1767694240802,-312.2334958,0.00032876,120]
[400518946,1767694240811,-403.98859443,0.00032876,120]
[400518948,1767694240820,-500.0,0.00032876,120]
[400518950,1767694240830,-500.0,0.00032876,120]
[400518952,1767694240840,-516.74814822,0.00032876,120]
[400518954,1767694240849,-407.54862741,0.00032876,120]
[400518956,1767694240859,-336.96852616,0.00032876,120]
[400518958,1767694240868,-366.50084594,0.00032876,120]
[400518960,1767694240877,-253.41788273,0.00032876,120]
[400518962,1767694240888,-500.0,0.00032876,120]
[400518965,1767694240897,-500.0,0.00032876,120]
[400518966,1767694240907,-500.0,0.00032876,120]
[400518968,1767694240918,-566.89756352,0.00032876,120]
[400518970,1767694240927,-500.0,0.00032876,120]
[400518972,1767694240936,-208.73710198,0.00032876,120]
[400518974,1767694240945,-320.37130643,0.00032876,120]
[400518976,1767694240954,-344.52181431,0.00032876,120]
[400518978,1767694240963,-554.32562521,0.00032876,120]
[400518981,1767694240974,-500.0,0.00032876,120]
[400518983,1767694240983,-183.65365644,0.00032876,120]
[400518984,1767694240992,-438.26765615,0.00032876,120]
[400518986,1767694241002,-249.94437977,0.00032876,120]
[400518988,1767694241010,-500.0,0.00032876,120]
[400518990,1767694241020,-189.44471943,0.00032876,120]
[400518993,1767694241029,-262.54031786,0.00032876,120]
[400518994,1767694241039,-262.24824801,0.00032876,120]
[400518996,1767694241048,-500.0,0.00032876,120]
[400518998,1767694241058,-306.90822535,0.00032876,120]
[400519000,1767694241069,-500.0,0.00032876,120]
[400519002,1767694241078,-500.0,0.00032876,120]
[400519004,1767694241087,-319.80247631,0.00032876,120]
[400519007,1767694241098,-500.0,0.00032876,120]
[400519009,1767694241112,-637.05311917,0.00032876,120]
[400519011,1767694241125,-434.40394145,0.00032876,120]
[400519014,1767694241139,-412.95826465,0.00032876,120]
[400519016,1767694241150,-500.0,0.00032876,120]
[400519018,1767694241161,-360.63347064,0.00032876,120]
[400519020,1767694241171,-500.0,0.00032876,120]
[400519022,1767694241181,-467.65651769,0.00032876,120]
[400519024,1767694241196,-487.28052257,0.00032876,120]
[400519027,1767694241208,-269.05750984,0.00032876,120]
[400519029,1767694241219,-470.82838515,0.00032876,120]
[400519031,1767694241231,-512.00673333,0.00032876,120]
[400519033,1767694241243,-441.36035901,0.00032876,120]
[400519035,1767694241254,-500.0,0.00032876,120]
[400519037,1767694241267,-432.48982397,0.00032876,120]
[400519040,1767694241278,-554.09838706,0.00032876,120]
[400519042,1767694241291,-500.0,0.00032876,120]
[400519044,1767694241301,-294.81348119,0.00032876,120]
[400519046,1767694241312,-234.47030701,0.00032876,120]
[400519049,1767694241322,-500.0,0.00032876,120]
[400519051,1767694241332,-561.54321594,0.00032876,120]
[400519053,1767694241341,-479.03,0.00032876,120]
[400519055,1767694241352,-500.0,0.00032876,120]
[400519057,1767694241364,-500.0,0.00032876,120]
[400519059,1767694241374,-500.0,0.00032876,120]
[400519062,1767694241386,-427.86556591,0.00032876,120]
[400519064,1767694241397,-500.0,0.00032876,120]
[400519066,1767694241408,-340.53340962,0.00032876,120]
[400519068,1767694241419,-383.59570157,0.00032876,120]
[400519070,1767694241431,-500.0,0.00032876,120]
[400519073,1767694241443,-318.68780307,0.00032876,120]
[400519075,1767694241454,-500.0,0.00032876,120]
[400519077,1767694241466,-500.0,0.00032876,120]
[400519079,1767694241476,-302.21825592,0.00032876,120]
[400519082,1767694241487,-500.0,0.00032876,120]
[400519084,1767694241498,-277.65379603,0.00032876,120]
[400519086,1767694241510,-500.0,0.00032876,120]
[400519088,1767694241521,-479.22802364,0.00032876,120]
[400519090,1767694241533,-293.96836105,0.00032876,120]
[400519093,1767694241544,-500.0,0.00032876,120]
[400519095,1767694241554,-256.57019921,0.00032876,120]
[400519097,1767694241567,-500.0,0.00032876,120]
[400519099,1767694241579,-526.57812989,0.00032876,120]
[400519101,1767694241591,-500.0,0.00032876,120]
[400519104,1767694241603,-172.54668272,0.00032876,120]
[400519106,1767694241615,-500.0,0.00032876,120]
[400519109,1767694241629,-334.67676069,0.00032876,120]
[400519111,1767694241642,-390.17055816,0.00032876,120]
[400519113,1767694241652,-500.0,0.00032876,120]
[400519115,1767694241664,-199.93529545,0.00032876,120]
[400519117,1767694241675,-446.58504173,0.00032876,120]
[400519119,1767694241686,-250.70478444,0.00032876,120]
[400519122,1767694241698,-500.0,0.00032876,120]